[Event "*** Titled Tuesday Blitz"]
[Site "Chess.com"]
[Date "2021.04.20"]
[Round "2"]
[White "dropstoneDP"]
[Black "c_r_e_e_p_e_r"]
[Result "1-0"]
[WhiteElo "2931"]
[BlackElo "2355"]
[TimeControl "180+1"]
[EndTime "10:18:19 PDT"]
[Termination "dropstoneDP won by checkmate"]

1. b3 {[%clk 0:03:00.9]} 1... a5 {[%clk 0:02:59.9]} 2. Nc3 {[%clk 0:02:59.5]}
2... e5 {[%clk 0:02:58.8]} 3. Nf3 {[%clk 0:02:58.9]} 3... d6 {[%clk 0:02:55.3]}
4. e4 {[%clk 0:02:58.3]} 4... Bg4 {[%clk 0:02:53.1]} 5. h3 {[%clk 0:02:54.3]}
5... Bh5 {[%clk 0:02:51.7]} 6. Be2 {[%clk 0:02:50.8]} 6... Nc6 {[%clk
0:02:51.1]} 7. O-O {[%clk 0:02:49.9]} 7... Nf6 {[%clk 0:02:38.1]} 8. Bb2 {[%clk
0:02:48.2]} 8... Be7 {[%clk 0:02:37.7]} 9. Re1 {[%clk 0:02:21.1]} 9... O-O
{[%clk 0:02:36.3]} 10. d3 {[%clk 0:02:21.2]} 10... Re8 {[%clk 0:02:32.2]} 11. a3
{[%clk 0:02:18.8]} 11... Bf8 {[%clk 0:02:32.4]} 12. Nb5 {[%clk 0:02:17.5]} 12...
a4 {[%clk 0:02:25.7]} 13. b4 {[%clk 0:02:15.3]} 13... d5 {[%clk 0:02:22]} 14.
Nd2 {[%clk 0:02:14.3]} 14... Bg6 {[%clk 0:02:18.9]} 15. exd5 {[%clk 0:02:13.4]}
15... Nxd5 {[%clk 0:02:16.7]} 16. Bf3 {[%clk 0:02:13.7]} 16... Nde7 {[%clk
0:01:53.2]} 17. Nc4 {[%clk 0:02:11.6]} 17... f6 {[%clk 0:01:49.1]} 18. d4 {[%clk
0:01:42.9]} 18... Bf7 {[%clk 0:01:41.8]} 19. Ne3 {[%clk 0:01:41.4]} 19... exd4
{[%clk 0:01:32.7]} 20. Nxd4 {[%clk 0:01:40.3]} 20... Nxd4 {[%clk 0:01:33]} 21.
Qxd4 {[%clk 0:01:37.2]} 21... c6 {[%clk 0:01:29.3]} 22. Rad1 {[%clk 0:01:35.7]}
22... Ng6 {[%clk 0:01:22.2]} 23. Qg4 {[%clk 0:01:15.6]} 23... Qc7 {[%clk
0:01:22.4]} 24. Nf5 {[%clk 0:01:09.5]} 24... Kh8 {[%clk 0:01:18.7]} 25. Qg3
{[%clk 0:00:46.4]} 25... Ne5 {[%clk 0:01:08.9]} 26. Bxe5 {[%clk 0:00:40.4]}
26... fxe5 {[%clk 0:01:09.3]} 27. Be4 {[%clk 0:00:38.1]} 27... Bg6 {[%clk
0:00:47]} 28. Qg4 {[%clk 0:00:35.6]} 28... Rad8 {[%clk 0:00:42.5]} 29. Ng3
{[%clk 0:00:35.4]} 29... Bxe4 {[%clk 0:00:41]} 30. Nxe4 {[%clk 0:00:35.1]} 30...
Rd4 {[%clk 0:00:29.5]} 31. c3 {[%clk 0:00:33.6]} 31... Rdd8 {[%clk 0:00:25.9]}
32. Ng5 {[%clk 0:00:32.6]} 32... Rxd1 {[%clk 0:00:14.2]} 33. Rxd1 {[%clk
0:00:33.5]} 33... Qe7 {[%clk 0:00:08.7]} 34. Rd7 {[%clk 0:00:32.3]} 34... Qf6
{[%clk 0:00:08.2]} 35. Qh5 {[%clk 0:00:28]} 35... Qg6 {[%clk 0:00:08.5]} 36.
Qxg6 {[%clk 0:00:27.6]} 36... hxg6 {[%clk 0:00:09.4]} 37. Rxb7 {[%clk
0:00:27.3]} 37... Re7 {[%clk 0:00:08.8]} 38. Rxe7 {[%clk 0:00:26.5]} 38... Bxe7
{[%clk 0:00:08.9]} 39. Ne4 {[%clk 0:00:27.4]} 39... Kg8 {[%clk 0:00:08.3]} 40.
Kf1 {[%clk 0:00:28]} 40... Kf7 {[%clk 0:00:08.5]} 41. Ke2 {[%clk 0:00:28.7]}
41... Ke6 {[%clk 0:00:09.1]} 42. Kd3 {[%clk 0:00:29.4]} 42... Kd5 {[%clk
0:00:09.4]} 43. c4+ {[%clk 0:00:26.4]} 43... Ke6 {[%clk 0:00:09.7]} 44. g4
{[%clk 0:00:26.4]} 44... g5 {[%clk 0:00:09.7]} 45. f3 {[%clk 0:00:25.7]} 45...
g6 {[%clk 0:00:09.9]} 46. Nc3 {[%clk 0:00:24.9]} 46... c5 {[%clk 0:00:08.7]} 47.
b5 {[%clk 0:00:25.2]} 47... Bf6 {[%clk 0:00:06.6]} 48. Ke4 {[%clk 0:00:25.5]}
48... Bd8 {[%clk 0:00:05.4]} 49. Nxa4 {[%clk 0:00:25.8]} 49... Kd6 {[%clk
0:00:05.1]} 50. Nb2 {[%clk 0:00:26]} 50... Ba5 {[%clk 0:00:05]} 51. Nd3 {[%clk
0:00:26.9]} 51... Bc3 {[%clk 0:00:04.8]} 52. a4 {[%clk 0:00:25.6]} 52... Ba5
{[%clk 0:00:03.8]} 53. Nxe5 {[%clk 0:00:25.4]} 53... Bc3 {[%clk 0:00:02.7]} 54.
Nxg6 {[%clk 0:00:25.2]} 54... Bd4 {[%clk 0:00:02.9]} 55. f4 {[%clk 0:00:25.4]}
55... gxf4 {[%clk 0:00:02.9]} 56. Nxf4 {[%clk 0:00:26.3]} 56... Ke7 {[%clk
0:00:03]} 57. Nd3 {[%clk 0:00:27.2]} 57... Kf6 {[%clk 0:00:03.6]} 58. a5 {[%clk
0:00:25.5]} 58... Bc3 {[%clk 0:00:02.3]} 59. a6 {[%clk 0:00:26.4]} 59... Ba5
{[%clk 0:00:02.9]} 60. a7 {[%clk 0:00:27]} 60... Bc3 {[%clk 0:00:02.9]} 61. a8=Q
{[%clk 0:00:27.9]} 61... Kg5 {[%clk 0:00:03.5]} 62. Qd5+ {[%clk 0:00:28.1]}
62... Kh4 {[%clk 0:00:04.4]} 63. b6 {[%clk 0:00:29]} 63... Kg3 {[%clk
0:00:05.1]} 64. b7 {[%clk 0:00:29.6]} 64... Bd4 {[%clk 0:00:06]} 65. Nb4 {[%clk
0:00:29.5]} 65... Kxh3 {[%clk 0:00:06.9]} 66. b8=Q {[%clk 0:00:30.1]} 66... Kg2
{[%clk 0:00:07]} 67. Qf4 {[%clk 0:00:30.5]} 67... Bf2 {[%clk 0:00:06.3]} 68.
Kd3+ {[%clk 0:00:31.4]} 68... Kg1 {[%clk 0:00:06.8]} 69. Qdf3 {[%clk 0:00:31.9]}
69... Kf1 {[%clk 0:00:07.4]} 70. Qh1# {[%clk 0:00:30.8]} 1-0

[Event "*** Titled Tuesday Blitz"]
[Site "Chess.com"]
[Date "2021.04.20"]
[Round "2"]
[White "Grandmaster1369"]
[Black "volunteers1998"]
[Result "1-0"]
[WhiteElo "2624"]
[BlackElo "2185"]
[TimeControl "180+1"]
[EndTime "10:18:21 PDT"]
[Termination "Grandmaster1369 won on time"]

1. e4 {[%clk 0:03:00.9]} 1... c5 {[%clk 0:02:58.8]} 2. Nf3 {[%clk 0:03:00.4]}
2... Nc6 {[%clk 0:02:57.8]} 3. Bb5 {[%clk 0:03:00.2]} 3... d6 {[%clk 0:02:56.2]}
4. O-O {[%clk 0:02:59.1]} 4... Bd7 {[%clk 0:02:53.3]} 5. Re1 {[%clk 0:02:58.9]}
5... e5 {[%clk 0:02:47.1]} 6. c3 {[%clk 0:02:57.1]} 6... Nf6 {[%clk 0:02:44.1]}
7. h3 {[%clk 0:02:57]} 7... Be7 {[%clk 0:02:38.1]} 8. d4 {[%clk 0:02:56.5]} 8...
cxd4 {[%clk 0:02:35.9]} 9. cxd4 {[%clk 0:02:56.5]} 9... exd4 {[%clk 0:02:34.8]}
10. Nxd4 {[%clk 0:02:57]} 10... O-O {[%clk 0:02:32]} 11. Bf1 {[%clk 0:02:53.4]}
11... d5 {[%clk 0:02:24.3]} 12. e5 {[%clk 0:02:44.5]} 12... Ne4 {[%clk
0:02:21.8]} 13. Nf3 {[%clk 0:02:23.4]} 13... Be6 {[%clk 0:02:08.9]} 14. Nc3
{[%clk 0:02:18.6]} 14... Nxc3 {[%clk 0:02:03.1]} 15. bxc3 {[%clk 0:02:19.5]}
15... Qa5 {[%clk 0:02:00.5]} 16. Bd2 {[%clk 0:02:14.8]} 16... Rac8 {[%clk
0:01:55.4]} 17. Bd3 {[%clk 0:02:14.7]} 17... Qc7 {[%clk 0:01:48.3]} 18. h4
{[%clk 0:02:09.3]} 18... Bg4 {[%clk 0:01:43.3]} 19. Bf4 {[%clk 0:01:47]} 19...
Qa5 {[%clk 0:01:36.3]} 20. Qb1 {[%clk 0:01:32.6]} 20... Bxf3 {[%clk 0:01:32.8]}
21. gxf3 {[%clk 0:01:27.5]} 21... Bxh4 {[%clk 0:01:27]} 22. Bxh7+ {[%clk
0:01:26.4]} 22... Kh8 {[%clk 0:01:25.4]} 23. Bf5 {[%clk 0:01:27.1]} 23... Rcd8
{[%clk 0:01:20.8]} 24. Kg2 {[%clk 0:01:27]} 24... g5 {[%clk 0:01:17.3]} 25. Rh1
{[%clk 0:01:26.8]} 25... Kg7 {[%clk 0:01:08.1]} 26. Bg4 {[%clk 0:01:10.7]} 26...
Qxc3 {[%clk 0:00:59.9]} 27. Qf5 {[%clk 0:01:01.5]} 27... gxf4 {[%clk 0:00:53.9]}
28. Rxh4 {[%clk 0:01:00.7]} 28... Qxe5 {[%clk 0:00:51.2]} 29. Rh7+ {[%clk
0:00:55.3]} 29... Kg8 {[%clk 0:00:48.3]} 30. Kh2 {[%clk 0:00:24.5]} 30... Qxf5
{[%clk 0:00:42.1]} 31. Bxf5 {[%clk 0:00:25.3]} 31... Ne5 {[%clk 0:00:39.2]} 32.
Rg1+ {[%clk 0:00:25.9]} 32... Ng6 {[%clk 0:00:36.9]} 33. Bxg6 {[%clk 0:00:26.6]}
33... fxg6 {[%clk 0:00:27.1]} 34. Rxb7 {[%clk 0:00:27.5]} 34... Rf6 {[%clk
0:00:27]} 35. Rxa7 {[%clk 0:00:26.3]} 35... d4 {[%clk 0:00:26.3]} 36. Rd1 {[%clk
0:00:25.7]} 36... d3 {[%clk 0:00:25.6]} 37. Ra4 {[%clk 0:00:24.4]} 37... d2
{[%clk 0:00:24.6]} 38. Rc4 {[%clk 0:00:24.1]} 38... Re6 {[%clk 0:00:22.2]} 39.
Rc2 {[%clk 0:00:22.4]} 39... Re2 {[%clk 0:00:22.6]} 40. Kg2 {[%clk 0:00:21.3]}
40... Kf7 {[%clk 0:00:19]} 41. Kf1 {[%clk 0:00:21.8]} 41... Re6 {[%clk
0:00:17.5]} 42. Rcxd2 {[%clk 0:00:21.5]} 42... Rxd2 {[%clk 0:00:17]} 43. Rxd2
{[%clk 0:00:22.4]} 43... Ra6 {[%clk 0:00:16.2]} 44. Kg2 {[%clk 0:00:22.6]} 44...
Kf6 {[%clk 0:00:15.8]} 45. Kh3 {[%clk 0:00:23.2]} 45... Kf5 {[%clk 0:00:16]} 46.
Rd5+ {[%clk 0:00:23]} 46... Kf6 {[%clk 0:00:14.7]} 47. Rd2 {[%clk 0:00:23.7]}
47... Ra4 {[%clk 0:00:14.5]} 48. Kg4 {[%clk 0:00:23.4]} 48... Kf7 {[%clk
0:00:10.2]} 49. Rb2 {[%clk 0:00:21.9]} 49... Kf6 {[%clk 0:00:09.5]} 50. Rb6+
{[%clk 0:00:18]} 50... Kf7 {[%clk 0:00:09.2]} 51. Rb2 {[%clk 0:00:17.3]} 51...
Kf6 {[%clk 0:00:08.9]} 52. Re2 {[%clk 0:00:16.5]} 52... Kf7 {[%clk 0:00:08.6]}
53. Kg5 {[%clk 0:00:17]} 53... Rb4 {[%clk 0:00:04.8]} 54. Re4 {[%clk 0:00:15.8]}
54... Rb2 {[%clk 0:00:03.7]} 55. Rxf4+ {[%clk 0:00:16]} 55... Kg7 {[%clk
0:00:03.8]} 56. Ra4 {[%clk 0:00:16.6]} 56... Rxf2 {[%clk 0:00:03.3]} 57. Ra7+
{[%clk 0:00:16.6]} 1-0

[Event "*** Titled Tuesday Blitz"]
[Site "Chess.com"]
[Date "2021.04.20"]
[Round "2"]
[White "allejam"]
[Black "freshfoodcompany"]
[Result "1-0"]
[WhiteElo "2212"]
[BlackElo "2395"]
[TimeControl "180+1"]
[EndTime "10:18:21 PDT"]
[Termination "allejam won by resignation"]

1. e4 {[%clk 0:02:08]} 1... c6 {[%clk 0:02:59.8]} 2. d4 {[%clk 0:02:05]} 2... d5
{[%clk 0:03:00.4]} 3. exd5 {[%clk 0:02:05.9]} 3... cxd5 {[%clk 0:03:00]} 4. Nc3
{[%clk 0:02:06.6]} 4... Nf6 {[%clk 0:02:59.3]} 5. Bf4 {[%clk 0:02:07.2]} 5...
Nc6 {[%clk 0:02:54.4]} 6. Nb5 {[%clk 0:02:06.9]} 6... e5 {[%clk 0:02:44.3]} 7.
Bxe5 {[%clk 0:02:00.8]} 7... Nxe5 {[%clk 0:02:40.5]} 8. dxe5 {[%clk 0:02:01.7]}
8... Ne4 {[%clk 0:02:26.3]} 9. Qxd5 {[%clk 0:02:01.1]} 9... Qxd5 {[%clk
0:01:56.3]} 10. Nc7+ {[%clk 0:01:59.9]} 10... Kd8 {[%clk 0:01:52.2]} 11. Nxd5
{[%clk 0:02:00.8]} 11... Be6 {[%clk 0:01:50.6]} 12. Rd1 {[%clk 0:01:43.7]} 12...
Kc8 {[%clk 0:01:42.7]} 13. f3 {[%clk 0:01:23.3]} 13... Nc5 {[%clk 0:01:31.4]}
14. Bc4 {[%clk 0:01:15.4]} 14... b6 {[%clk 0:01:21.2]} 15. Ne2 {[%clk
0:01:12.3]} 15... Kb7 {[%clk 0:01:20.6]} 16. Nd4 {[%clk 0:00:57.1]} 16... Rd8
{[%clk 0:01:14]} 17. Nxe6 {[%clk 0:00:44.7]} 17... Nxe6 {[%clk 0:01:08.9]} 18.
O-O {[%clk 0:00:36]} 18... Bc5+ {[%clk 0:01:07.5]} 19. Kh1 {[%clk 0:00:36.1]}
19... Nd4 {[%clk 0:01:04]} 20. c3 {[%clk 0:00:30.6]} 20... Nc6 {[%clk
0:00:58.4]} 21. f4 {[%clk 0:00:28.6]} 21... Rd7 {[%clk 0:00:56.4]} 22. b4 {[%clk
0:00:25.9]} 22... Bf8 {[%clk 0:00:48.9]} 23. Ne3 {[%clk 0:00:23.5]} 23... Rc7
{[%clk 0:00:44.2]} 24. Bd5 {[%clk 0:00:20.2]} 24... Kc8 {[%clk 0:00:29.7]} 25.
Rd3 {[%clk 0:00:16.2]} 25... Be7 {[%clk 0:00:28.2]} 26. Rfd1 {[%clk 0:00:15.8]}
26... Rd8 {[%clk 0:00:26.8]} 27. Bxf7 {[%clk 0:00:11.6]} 27... Rxd3 {[%clk
0:00:20.7]} 28. Rxd3 {[%clk 0:00:12.5]} 28... Kb7 {[%clk 0:00:15.8]} 29. Bd5
{[%clk 0:00:11]} 29... b5 {[%clk 0:00:15.5]} 30. g3 {[%clk 0:00:10.4]} 30... Kb6
{[%clk 0:00:14.1]} 31. Be4 {[%clk 0:00:09.7]} 31... a6 {[%clk 0:00:13.4]} 32.
Nd5+ {[%clk 0:00:10.1]} 32... Kb7 {[%clk 0:00:13.1]} 33. Nxc7 {[%clk 0:00:11]}
33... Kxc7 {[%clk 0:00:13.8]} 34. Bxc6 {[%clk 0:00:11.9]} 34... Kxc6 {[%clk
0:00:14.4]} 35. Kg2 {[%clk 0:00:12.7]} 35... Bf8 {[%clk 0:00:14]} 36. a3 {[%clk
0:00:13.1]} 36... Be7 {[%clk 0:00:14.1]} 37. Kf3 {[%clk 0:00:13.5]} 37... Bf8
{[%clk 0:00:14.3]} 38. Ke4 {[%clk 0:00:14.1]} 38... Be7 {[%clk 0:00:14.8]} 39.
f5 {[%clk 0:00:14.7]} 39... Bf8 {[%clk 0:00:13.9]} 40. g4 {[%clk 0:00:14.6]}
40... Be7 {[%clk 0:00:13.9]} 41. h4 {[%clk 0:00:14.3]} 41... Bxh4 {[%clk
0:00:12]} 42. Rh3 {[%clk 0:00:14.9]} 42... Be1 {[%clk 0:00:10.5]} 43. Rxh7
{[%clk 0:00:14.2]} 43... Bxc3 {[%clk 0:00:09.9]} 44. Rxg7 {[%clk 0:00:14.7]}
44... Bb2 {[%clk 0:00:10.2]} 45. f6 {[%clk 0:00:15.3]} 45... Bxa3 {[%clk
0:00:09.8]} 46. f7 {[%clk 0:00:14.9]} 46... Bxb4 {[%clk 0:00:10.2]} 47. Rg8
{[%clk 0:00:15.4]} 47... a5 {[%clk 0:00:10.5]} 48. f8=Q {[%clk 0:00:15.8]} 48...
Bxf8 {[%clk 0:00:10.3]} 49. Rxf8 {[%clk 0:00:16.7]} 49... a4 {[%clk 0:00:10.7]}
50. Ra8 {[%clk 0:00:15.4]} 50... Kb7 {[%clk 0:00:10.7]} 51. Rd8 {[%clk
0:00:13.9]} 51... a3 {[%clk 0:00:10.3]} 52. Rd2 {[%clk 0:00:13.4]} 52... b4
{[%clk 0:00:09]} 53. Kd4 {[%clk 0:00:14.1]} 53... b3 {[%clk 0:00:07.7]} 54. Kc3
{[%clk 0:00:14.4]} 54... b2 {[%clk 0:00:03.2]} 55. Kb3 {[%clk 0:00:13.2]} 55...
b1=Q+ {[%clk 0:00:01.9]} 56. Kxa3 {[%clk 0:00:13.7]} 56... Qc1+ {[%clk
0:00:01.8]} 57. Rb2+ {[%clk 0:00:14.1]} 57... Kc6 {[%clk 0:00:02.3]} 58. Kb3
{[%clk 0:00:14.1]} 58... Kd5 {[%clk 0:00:02.9]} 59. Rc2 {[%clk 0:00:15]} 59...
Kxe5 {[%clk 0:00:03.4]} 60. Rxc1 {[%clk 0:00:15.2]} 60... Kf4 {[%clk 0:00:04.1]}
61. Rg1 {[%clk 0:00:16.1]} 61... Kg5 {[%clk 0:00:04.1]} 62. Kc3 {[%clk
0:00:16.6]} 1-0

[Event "*** Titled Tuesday Blitz"]
[Site "Chess.com"]
[Date "2021.04.20"]
[Round "2"]
[White "IANOV0007"]
[Black "tteshan"]
[Result "1-0"]
[WhiteElo "2457"]
[BlackElo "2235"]
[TimeControl "180+1"]
[EndTime "10:18:24 PDT"]
[Termination "IANOV0007 won by resignation"]

1. Nf3 {[%clk 0:03:00.9]} 1... c5 {[%clk 0:03:00]} 2. g3 {[%clk 0:03:00.6]} 2...
Nc6 {[%clk 0:03:00]} 3. Bg2 {[%clk 0:03:00.6]} 3... g6 {[%clk 0:03:00.6]} 4. c4
{[%clk 0:03:00.2]} 4... Bg7 {[%clk 0:03:00.9]} 5. Nc3 {[%clk 0:03:00.2]} 5... e6
{[%clk 0:03:01.2]} 6. O-O {[%clk 0:02:59.9]} 6... Nge7 {[%clk 0:03:01.5]} 7. d3
{[%clk 0:03:00.1]} 7... O-O {[%clk 0:03:01.5]} 8. Bg5 {[%clk 0:02:59.9]} 8... h6
{[%clk 0:03:01.1]} 9. Bd2 {[%clk 0:02:59.3]} 9... d5 {[%clk 0:03:01.3]} 10. a3
{[%clk 0:02:58.8]} 10... a5 {[%clk 0:02:53.6]} 11. Rb1 {[%clk 0:02:58.2]} 11...
b6 {[%clk 0:02:52.4]} 12. b3 {[%clk 0:02:56.5]} 12... Bb7 {[%clk 0:02:52]} 13.
Qc1 {[%clk 0:02:54.7]} 13... Kh7 {[%clk 0:02:51.2]} 14. Rd1 {[%clk 0:02:54.2]}
14... Nf5 {[%clk 0:02:40]} 15. e3 {[%clk 0:02:52.5]} 15... d4 {[%clk 0:02:20.9]}
16. exd4 {[%clk 0:02:43.9]} 16... Nfxd4 {[%clk 0:01:50.1]} 17. Nxd4 {[%clk
0:02:40.6]} 17... Qxd4 {[%clk 0:01:50.5]} 18. Be1 {[%clk 0:02:33.3]} 18... Rfd8
{[%clk 0:01:42.9]} 19. Nb5 {[%clk 0:02:27.6]} 19... Qd7 {[%clk 0:01:41.5]} 20.
Bc3 {[%clk 0:02:15.4]} 20... Nd4 {[%clk 0:01:28.8]} 21. Bxd4 {[%clk 0:02:13.6]}
21... Bxd4 {[%clk 0:01:18.4]} 22. Nxd4 {[%clk 0:02:08.8]} 22... Bxg2 {[%clk
0:01:09.7]} 23. Nf5 {[%clk 0:02:04.4]} 23... gxf5 {[%clk 0:01:00.5]} 24. Kxg2
{[%clk 0:02:03.5]} 24... Qc6+ {[%clk 0:00:58.8]} 25. Kg1 {[%clk 0:02:02.4]}
25... Rd4 {[%clk 0:00:58.3]} 26. b4 {[%clk 0:01:59.1]} 26... axb4 {[%clk
0:00:57.4]} 27. axb4 {[%clk 0:01:58.3]} 27... Qf3 {[%clk 0:00:55.9]} 28. bxc5
{[%clk 0:01:48.4]} 28... bxc5 {[%clk 0:00:56.8]} 29. Qe3 {[%clk 0:01:47.1]}
29... Qc6 {[%clk 0:00:40.9]} 30. Rd2 {[%clk 0:01:35.6]} 30... Ra3 {[%clk
0:00:29.5]} 31. Qe2 {[%clk 0:01:19.3]} 31... Qd6 {[%clk 0:00:26.2]} 32. Rbd1
{[%clk 0:01:16.4]} 32... Ra8 {[%clk 0:00:24.1]} 33. Rb2 {[%clk 0:01:06.6]} 33...
Rd8 {[%clk 0:00:23.5]} 34. Rb7 {[%clk 0:01:06]} 34... Kg6 {[%clk 0:00:22.1]} 35.
Rb5 {[%clk 0:00:54.9]} 35... Rxd3 {[%clk 0:00:10]} 36. Rxd3 {[%clk 0:00:53.8]}
36... Qxd3 {[%clk 0:00:10.3]} 37. Qxd3 {[%clk 0:00:53.9]} 37... Rxd3 {[%clk
0:00:11.2]} 38. Rxc5 {[%clk 0:00:53.7]} 38... Rc3 {[%clk 0:00:11.9]} 39. Rc7
{[%clk 0:00:52.4]} 39... Kf6 {[%clk 0:00:12.3]} 40. f4 {[%clk 0:00:49.5]} 40...
Rc2 {[%clk 0:00:12.3]} 41. c5 {[%clk 0:00:48]} 41... Kg7 {[%clk 0:00:12.1]} 42.
c6 {[%clk 0:00:47.1]} 42... Kf6 {[%clk 0:00:10.7]} 43. h4 {[%clk 0:00:46.5]}
43... Kg6 {[%clk 0:00:08.5]} 44. Kf1 {[%clk 0:00:44.9]} 44... Kh5 {[%clk
0:00:07]} 45. Rxf7 {[%clk 0:00:42.3]} 45... Rxc6 {[%clk 0:00:06.9]} 46. Rg7
{[%clk 0:00:42.1]} 46... Rd6 {[%clk 0:00:06.3]} 47. Kg2 {[%clk 0:00:41.1]} 47...
Rd2+ {[%clk 0:00:06.2]} 48. Kh3 {[%clk 0:00:40.7]} 48... Re2 {[%clk 0:00:04.6]}
49. Rg8 {[%clk 0:00:38.1]} 49... e5 {[%clk 0:00:04.5]} 50. fxe5 {[%clk
0:00:35.3]} 50... Rxe5 {[%clk 0:00:05.4]} 51. Rg7 {[%clk 0:00:29.4]} 51... Re6
{[%clk 0:00:05.5]} 52. Kg2 {[%clk 0:00:27.7]} 52... Rg6 {[%clk 0:00:05.3]} 53.
Rf7 {[%clk 0:00:27]} 53... Kg4 {[%clk 0:00:04.3]} 54. Kf2 {[%clk 0:00:26.6]}
54... Rc6 {[%clk 0:00:03.5]} 55. Rg7+ {[%clk 0:00:25.9]} 55... Kh3 {[%clk
0:00:03.8]} 56. Rg6 {[%clk 0:00:25.6]} 56... Rc2+ {[%clk 0:00:04.3]} 57. Kf3
{[%clk 0:00:25.5]} 57... Rc3+ {[%clk 0:00:04.5]} 58. Kf4 {[%clk 0:00:25.6]}
58... Rd3 {[%clk 0:00:03]} 59. h5 {[%clk 0:00:24.4]} 59... Rc3 {[%clk
0:00:02.6]} 60. Kxf5 {[%clk 0:00:23.1]} 60... Rxg3 {[%clk 0:00:02.8]} 61. Rxg3+
{[%clk 0:00:22.1]} 61... Kxg3 {[%clk 0:00:03.7]} 62. Kg6 {[%clk 0:00:22]} 62...
Kf4 {[%clk 0:00:04.2]} 63. Kxh6 {[%clk 0:00:22]} 63... Kg4 {[%clk 0:00:04.3]}
64. Kg6 {[%clk 0:00:21.7]} 1-0

[Event "*** Titled Tuesday Blitz"]
[Site "Chess.com"]
[Date "2021.04.20"]
[Round "2"]
[White "FGHSMN"]
[Black "GMRafpig"]
[Result "1/2-1/2"]
[WhiteElo "2482"]
[BlackElo "2680"]
[TimeControl "180+1"]
[EndTime "10:18:28 PDT"]
[Termination "Game drawn by repetition"]

1. e4 {[%clk 0:03:00.9]} 1... e5 {[%clk 0:02:59.3]} 2. Nf3 {[%clk 0:02:55.7]}
2... Nc6 {[%clk 0:02:57]} 3. Bc4 {[%clk 0:02:54.5]} 3... Nf6 {[%clk 0:02:56.9]}
4. d3 {[%clk 0:02:54]} 4... Bc5 {[%clk 0:02:56.1]} 5. a4 {[%clk 0:02:52.3]} 5...
d6 {[%clk 0:02:54.6]} 6. c3 {[%clk 0:02:46.2]} 6... a6 {[%clk 0:02:47.1]} 7. O-O
{[%clk 0:02:42.5]} 7... O-O {[%clk 0:02:44.9]} 8. h3 {[%clk 0:02:30.4]} 8... h6
{[%clk 0:02:44.1]} 9. Nbd2 {[%clk 0:02:29.2]} 9... Ba7 {[%clk 0:02:42.9]} 10.
Re1 {[%clk 0:02:27.6]} 10... Re8 {[%clk 0:02:41.8]} 11. Nf1 {[%clk 0:02:24]}
11... Be6 {[%clk 0:02:41.4]} 12. Ng3 {[%clk 0:01:56.5]} 12... d5 {[%clk
0:02:32.4]} 13. exd5 {[%clk 0:01:55.3]} 13... Bxd5 {[%clk 0:02:33.3]} 14. Bxd5
{[%clk 0:01:53.9]} 14... Qxd5 {[%clk 0:02:31.7]} 15. Ne4 {[%clk 0:01:54.3]}
15... Nxe4 {[%clk 0:02:28.1]} 16. dxe4 {[%clk 0:01:55.2]} 16... Qxd1 {[%clk
0:02:26.4]} 17. Rxd1 {[%clk 0:01:56.1]} 17... Rad8 {[%clk 0:02:26.8]} 18. Bd2
{[%clk 0:01:56.2]} 18... Na5 {[%clk 0:02:19.4]} 19. Be1 {[%clk 0:01:55.7]} 19...
Nb3 {[%clk 0:02:13.1]} 20. Rab1 {[%clk 0:01:52.2]} 20... f6 {[%clk 0:02:08.4]}
21. Kf1 {[%clk 0:01:51.5]} 21... Nc5 {[%clk 0:02:06.6]} 22. Nd2 {[%clk 0:01:40]}
22... Nxa4 {[%clk 0:02:05.1]} 23. Ke2 {[%clk 0:01:39.7]} 23... Kf7 {[%clk
0:02:00.9]} 24. Nc4 {[%clk 0:01:35.1]} 24... Nc5 {[%clk 0:01:59.1]} 25. f3
{[%clk 0:01:33.9]} 25... Ne6 {[%clk 0:01:49.6]} 26. g3 {[%clk 0:01:31.9]} 26...
h5 {[%clk 0:01:47.5]} 27. h4 {[%clk 0:01:31]} 27... Ke7 {[%clk 0:01:40.2]} 28.
Na5 {[%clk 0:01:29.4]} 28... Bb6 {[%clk 0:01:34.5]} 29. b4 {[%clk 0:01:22.6]}
29... Rxd1 {[%clk 0:01:32.1]} 30. Kxd1 {[%clk 0:01:21]} 30... Rb8 {[%clk
0:01:25.2]} 31. Nc4 {[%clk 0:01:15.4]} 31... Ba7 {[%clk 0:01:22.4]} 32. Ke2
{[%clk 0:01:14.6]} 32... Rd8 {[%clk 0:01:16.4]} 33. Bd2 {[%clk 0:01:13.1]} 33...
g6 {[%clk 0:01:12.2]} 34. b5 {[%clk 0:01:00.2]} 34... axb5 {[%clk 0:01:11.5]}
35. Rxb5 {[%clk 0:01:00.5]} 35... Rb8 {[%clk 0:01:05.7]} 36. Na5 {[%clk
0:00:57.6]} 36... Bb6 {[%clk 0:01:04]} 37. Be3 {[%clk 0:00:51.9]} 37... Bxa5
{[%clk 0:01:01.6]} 38. Rxa5 {[%clk 0:00:52.8]} 38... Nd8 {[%clk 0:00:59.6]} 39.
f4 {[%clk 0:00:50.8]} 39... Nc6 {[%clk 0:00:59.1]} 40. Ra4 {[%clk 0:00:42.6]}
40... Ke6 {[%clk 0:00:58.4]} 41. Kf3 {[%clk 0:00:40.5]} 41... Rd8 {[%clk
0:00:57.7]} 42. Ra1 {[%clk 0:00:36.5]} 42... Rd3 {[%clk 0:00:55.2]} 43. Rc1
{[%clk 0:00:35.4]} 43... Na5 {[%clk 0:00:48.6]} 44. Ke2 {[%clk 0:00:33.5]} 44...
Rd7 {[%clk 0:00:48.2]} 45. c4 {[%clk 0:00:32.7]} 45... Nb3 {[%clk 0:00:47.9]}
46. Rb1 {[%clk 0:00:31.4]} 46... Nd4+ {[%clk 0:00:44.6]} 47. Bxd4 {[%clk
0:00:26]} 47... Rxd4 {[%clk 0:00:45.5]} 48. Rxb7 {[%clk 0:00:26.2]} 48... Rxe4+
{[%clk 0:00:36.7]} 49. Kd3 {[%clk 0:00:25.2]} 49... Rd4+ {[%clk 0:00:37.1]} 50.
Kc3 {[%clk 0:00:25.7]} 50... Rd7 {[%clk 0:00:37.1]} 51. fxe5 {[%clk 0:00:23.4]}
51... fxe5 {[%clk 0:00:37.3]} 52. Rb8 {[%clk 0:00:21.2]} 52... Kf5 {[%clk
0:00:37.5]} 53. Rf8+ {[%clk 0:00:19]} 53... Kg4 {[%clk 0:00:35.3]} 54. Rg8
{[%clk 0:00:17.9]} 54... Rd6 {[%clk 0:00:35.2]} 55. c5 {[%clk 0:00:18.1]} 55...
Re6 {[%clk 0:00:35.2]} 56. Kc4 {[%clk 0:00:19]} 56... e4 {[%clk 0:00:35]} 57.
Kd5 {[%clk 0:00:12.4]} 57... e3 {[%clk 0:00:33.8]} 58. Kxe6 {[%clk 0:00:12.7]}
58... e2 {[%clk 0:00:34.1]} 59. Rxg6+ {[%clk 0:00:13.3]} 59... Kf3 {[%clk
0:00:33.4]} 60. Rg5 {[%clk 0:00:13.2]} 60... e1=Q+ {[%clk 0:00:32.4]} 61. Kd7
{[%clk 0:00:13.8]} 61... Qd2+ {[%clk 0:00:31.4]} 62. Kxc7 {[%clk 0:00:13.1]}
62... Qa5+ {[%clk 0:00:30.3]} 63. Kc6 {[%clk 0:00:13]} 63... Qa6+ {[%clk
0:00:30.4]} 64. Kd7 {[%clk 0:00:13.1]} 64... Qb7+ {[%clk 0:00:30.7]} 65. Kd6
{[%clk 0:00:13.6]} 65... Qb8+ {[%clk 0:00:30.7]} 66. Kd7 {[%clk 0:00:14.1]}
66... Qb7+ {[%clk 0:00:31]} 67. Kd6 {[%clk 0:00:14.4]} 67... Qb8+ {[%clk
0:00:31.4]} 68. Kc6 {[%clk 0:00:14.6]} 68... Qc8+ {[%clk 0:00:31.7]} 69. Kb6
{[%clk 0:00:15.5]} 69... Qb8+ {[%clk 0:00:31.8]} 70. Kc6 {[%clk 0:00:15.9]}
70... Qc8+ {[%clk 0:00:32.2]} 71. Kd6 {[%clk 0:00:16.1]} 71... Qd8+ {[%clk
0:00:32.5]} 72. Kc6 {[%clk 0:00:16.7]} 72... Qc8+ {[%clk 0:00:32.9]} 1/2-1/2